Cogmind - Beta 12 @@@ ROGUE MODE // 2023.12.25 @ 18:11:27 // Winter2019/RPGLIKE Player: Erik Result: Destroyed by as-23431 with Assembled Blade Performance ------------- Evolutions (0) 0 Regions Visited (3) 600 Robots Destroyed (53) 265 Value Destroyed (898) 898 Prototype IDs (4) 80 Alien Tech Used (0) 0 Bonus (0) 0 TOTAL SCORE: 1843 Bonus ------- None Cogmind --------- Core Integrity 0/1000 Matter 241/350 Energy 150/150 System Corruption 2% Temperature Cool (0) Movement Walking (120) Location -10/Exiles Parts ------- > --- POWER (1) -------- (None) > --- PROPULSION (2) --- Aluminum Leg > --- UTILITY (3) ------ Experimental Sensor Array ECM Suite > --- WEAPON (2) ------- Autogun Autogun > --- INVENTORY (1) ---- Mining Laser Peak State ------------ > --- POWER ------------ Ion Engine > --- PROPULSION ------- Aluminum Leg Aluminum Leg > --- UTILITY ---------- Structural Scanner Experimental Sensor Array ECM Suite > --- WEAPON ----------- Autogun Autogun > --- INVENTORY -------- Mining Laser [Rating: 18] Favorites ----------- Power Ion Engine Engine Ion Engine Power Core Light Nuclear Core Propulsion Aluminum Leg Leg Aluminum Leg Utility Heat Sink Device Heat Sink Processor Transport Network Coupler Weapon Assault Rifle Ballistic Gun Assault Rifle Special Weapon Mining Laser Build | -11 -10 -10 -10 ------- Run | Jun Mat Min Exi Slots Evolved 4 | 3 . 1 . Power . | . . . . Propulsion 1 | 1 . . . Utility 2 | 1 . 1 . Weapon 1 | 1 . . . Parts Attached 22 | 7 9 5 1 Power 6 | 2 3 . 1 Engine 5 | 2 2 . 1 Core 1 | . 1 . . Reactor . | . . . . Propulsion 2 | 2 . . . Treads . | . . . . Leg 2 | 2 . . . Wheel . | . . . . Hover . | . . . . Flight . | . . . . Utility 6 | 1 4 1 . Device 5 | 1 3 1 . Storage . | . . . . Processor 1 | . 1 . . Hackware . | . . . . Protection . | . . . . Artifact . | . . . . Weapon 8 | 2 2 4 . Energy Gun . | . . . . Energy Cannon . | . . . . Ballistic Gun 6 | 2 2 2 . Ballistic Cannon . | . . . . Launcher . | . . . . Special Weapon 2 | . . 2 . Impact Weapon . | . . . . Slashing Weapon . | . . . . Piercing Weapon . | . . . . Special Melee Weapon . | . . . . Unidentified Prototypes 1 | . . 1 . Parts Lost 2 | . . . 2 Power 1 | . . . 1 Propulsion . | . . . . Utility 1 | . . . 1 Weapon . | . . . . Highest Loss Streak 2 | . . . 2 To Critical Strikes . | . . . . Average Slot Usage (%) 95 | . 94 95 97 Engine 11 | . 11 12 10 Core 1 | . 2 . . Leg 26 | . 28 25 25 Device 25 | . 19 32 36 Processor 1 | . 3 . . Ballistic Gun 23 | . 28 16 25 Special Weapon 2 | . . 7 . Naked Turns . | . . . . Heaviest Build 15 | 10 14 15 15 Greatest Support 25 | 25 25 25 25 Greatest Overweight (x) . | . . . . Average Overweight (x) . | . . . . Largest Inventory Capacity 1 | . 1 1 1 Average Capacity . | . . 1 1 Most Carried 1 | . 1 1 1 Average Carried . | . . . 1 Final Capacity 1 | . 1 1 1 Final Carried 1 | . 1 1 1 Class Distribution -------------------- 78% | Mutant 21% | Infiltrator-Mutant Dominant Class ---------------- Mutant | -10/Materials Infiltrator-Mutant | -10/Mines Infiltrator-Mutant | -10/Exiles Resources | -11 -10 -10 -10 ----------- Run | Jun Mat Min Exi Matter Collected 1473 | 288 647 538 . Remotely . | . . . . Salvage Created 1653 | 69 1078 506 . Parts 113 | 6 78 29 . Haulers Intercepted 2 | . 2 . . Recyclers Shooed 1 | . 1 . . Parts Field Recycled . | . . . . Retrieved Matter . | . . . . Parts Self-Destructed . | . . . . Prevented . | . . . . Kills | -11 -10 -10 -10 ------- Run | Jun Mat Min Exi Combat Hostiles Destroyed 34 | 1 16 17 . Guns 34 | 1 16 17 . Classes Destroyed 10 | 2 5 3 . Worker 10 | 1 5 4 . Builder 3 | . 3 . . Tunneler 5 | . 2 3 . Hauler 2 | . 2 . . Recycler 5 | . 2 3 . Watcher 2 | . 2 . . Swarmer 6 | . . 6 . Grunt 19 | 1 16 2 . Demolisher 1 | . . 1 . Assembled 8 | . . 8 . Best Kill Streak 13 | 2 6 13 . Combat Bots Only 9 | 1 3 9 . Max Kills in Single Turn 2 | 1 2 2 . Gunslinging 1 | . . 1 . Exploded . | . . . . Melee . | . . . . Uniques/NPCs Destroyed . | . . . . Combat | -11 -10 -10 -10 -------- Run | Jun Mat Min Exi Damage Taken 2025 | . 402 773 850 Core 1658 | . 334 626 698 Absorbed by Shields . | . . . . Redirected to Core 1273 | . 203 507 563 Regen/Repaired (Parts) 18 | . 18 . . Core Remaining (%) 100 | 100 . . . Volleys Fired 169 | 3 87 70 9 Largest 2 | 2 2 2 2 Hottest 123 | 40 46 123 46 Shots Fired 320 | 6 174 121 19 Gun 307 | 6 174 108 19 Cannon . | . . . . Launcher . | . . . . Special 13 | . . 13 . Kinetic 307 | 6 174 108 19 Thermal 13 | . . 13 . Explosive . | . . . . Electromagnetic . | . . . . Robot Hit Streak 15 | 2 9 15 5 Robot Miss Streak 4 | 1 4 4 2 Penetration Max . | . . . . Secondary Targets 6 | . 1 5 . Max Gunslinging Chain 1 | . 1 1 . Shots Hit Robots 195 | 3 111 73 8 Core Hits 84 | 2 41 38 3 Critical Kills 2 | . 2 . . Critical Parts Destroyed 1 | . 1 . . Critical Strikes 3 | . 3 . . Destroy 3 | . 3 . . Melee Attacks . | . . . . Impact . | . . . . Slashing . | . . . . Piercing . | . . . . Sneak Attacks . | . . . . Combat Hostiles . | . . . . Follow-up Attacks . | . . . . Damage Inflicted 2941 | 39 1628 1134 140 Guns 2917 | 39 1628 1110 140 Cannons . | . . . . Explosions . | . . . . Melee . | . . . . Ramming . | . . . . Kinetic 2917 | 39 1628 1110 140 Thermal 24 | . . 24 . Explosive . | . . . . Electromagnetic . | . . . . Impact . | . . . . Slashing . | . . . . Piercing . | . . . . Highest Corruption 2 | . 1 1 2 Average Corruption 1 | . 1 1 1 Corruption Purged . | . . . . Corruption Blocked . | . . . . Effects 14 | . 3 7 4 Message Errors 3 | . . 1 2 Matter Fused 3 | . 1 2 . Heat Flow Errors 1 | . . . 1 Energy Discharges 2 | . 1 1 . Data Loss (minor) 3 | . 1 2 . Misfires 1 | . . . 1 Weapon Failures 1 | . . 1 . Overload Shots . | . . . . Overflow Damage . | . . . . Projectiles . | . . . . Explosions . | . . . . Melee . | . . . . Knockbacks . | . . . . Impact . | . . . . Kinetic . | . . . . Secondary . | . . . . Self-Inflicted Damage . | . . . . Shots . | . . . . Rammed . | . . . . Targets Rammed . | . . . . Kicked . | . . . . Crushed . | . . . . Highest Temperature 140 | . 3 11 140 Average Temperature 32 | . 3 7 52 Received Heat Transfer 408 | . 204 124 80 Siege Activations . | . . . . Robots Corrupted . | . . . . Combat Hostiles . | . . . . Parts Fried . | . . . . Impact Corruptions . | . . . . Robots Melted . | . . . . Combat Hostiles . | . . . . Parts Melted . | . . . . Heat Transferred 50 | . . 50 . Parts Sabotaged . | . . . . Parts Stolen . | . . . . Parts Stripped . | . . . . Power Chain Reactions . | . . . . Missiles Intercepted . | . . . . Alert | -11 -10 -10 -10 ------- Run | Jun Mat Min Exi Peak Influence 274 | 25 274 181 . Initial 105 | . . 105 . Average 30 | 1 96 87 . Maximum Alert Level 1 | . 1 . . Low Security (%) 95 | 100 77 100 . Level 1 4 | . 22 . . Level 2 . | . . . . Level 3 . | . . . . Level 4 . | . . . . Level 5 . | . . . . High Security . | . . . . Max Security . | . . . . Squads Dispatched 9 | . 9 . . Investigation 7 | . 7 . . Extermination . | . . . . Reinforcement 2 | . 2 . . Assault . | . . . . Garrison . | . . . . Intercept . | . . . . Searches Triggered . | . . . . Construction Impeded . | . . . . Haulers Reinforced . | . . . . Active Scanning Responses . | . . . . Cargo Convoy Interrupts . | . . . . Stealth | -11 -10 -10 -10 --------- Run | Jun Mat Min Exi Distress Signals 4 | . 4 . . Communications Jammed . | . . . . Distress Signals . | . . . . Times Spotted 67 | 1 17 29 20 Peak Tracking Total 20 | . 3 20 13 Tactical Retreats 4 | . . 2 2 Traps | -11 -10 -10 -10 ------- Run | Jun Mat Min Exi Traps Triggered 1 | . 1 . . Indirectly . | . . . . Trap Hack Attempts . | . . . . Triggered . | . . . . Disarmed . | . . . . Reprogrammed . | . . . . Reused . | . . . . Traps Extracted . | . . . . Installed . | . . . . Triggered . | . . . . Machines | -11 -10 -10 -10 ---------- Run | Jun Mat Min Exi Machines Disabled 1 | . . . 1 Max in Single Turn 1 | . . . 1 Machines Repaired . | . . . . Machines Sabotaged . | . . . . Overloaded Fab Kills . | . . . . Hacking | -11 -10 -10 -10 --------- Run | Jun Mat Min Exi Machines Accessed 8 | . 8 . . Terminals 5 | . 5 . . Fabricators . | . . . . Repair Stations 1 | . 1 . . Recycling Units 2 | . 2 . . Scanalyzers . | . . . . Garrison Access . | . . . . Total Hacks 41 | . 41 . . Successful 26 | . 26 . . Failed 15 | . 15 . . Catastrophic 1 | . 1 . . Database Lockouts . | . . . . Manual . | . . . . Terminals 23 | . 23 . . Fabricators . | . . . . Repair Stations 4 | . 4 . . Recycling Units 14 | . 14 . . Scanalyzers . | . . . . Garrison Access . | . . . . Terminal Hacks 16 | . 16 . . Record 1 | . 1 . . Robot Analysis 1 | . 1 . . Prototype ID Bank 1 | . 1 . . Level Access Points 1 | . 1 . . Branch Access Points 1 | . 1 . . Emergency Access Points 2 | . 2 . . Recycling Unit Index 1 | . 1 . . Alert Level 4 | . 4 . . Locate Traps 1 | . 1 . . Assault Status 1 | . 1 . . Zone Layout 2 | . 2 . . Fabricator Hacks . | . . . . Repair Station Hacks 3 | . 3 . . Scan Component 2 | . 2 . . Repair 1 | . 1 . . Recycling Unit Hacks 7 | . 7 . . Report Inventory 3 | . 3 . . Retrieve Matter 1 | . 1 . . Retrieve Components 3 | . 3 . . Scanalyzer . | . . . . Garrison Access Hacks . | . . . . Unauthorized Hacks . | . . . . Terminals . | . . . . Fabricators . | . . . . Repair Stations . | . . . . Recycling Units . | . . . . Scanalyzers . | . . . . Garrison Access . | . . . . Data Cores Recovered . | . . . . Used . | . . . . Hacking Detections 8 | . 8 . . Full Trace Events 8 | . 8 . . Feedback Events 1 | . 1 . . Corruption 1 | . 1 . . Feedback Blocked . | . . . . Robot Schematics Acquired . | . . . . Robots Built . | . . . . Authchips . | . . . . Time . | . . . . Total Robot Build Rating . | . . . . Part Schematics Acquired . | . . . . Parts Built . | . . . . Authchips . | . . . . Time . | . . . . Total Part Build Rating . | . . . . Parts Repaired 1 | . 1 . . Time 26 | . 26 . . Parts Recycled . | . . . . Recycled Matter . | . . . . Retrieved Matter 224 | . 224 . . Retrieved Components 23 | . 23 . . Parts Scanalyzed . | . . . . Part Schematics Acquired . | . . . . Parts Damaged . | . . . . Bothacking | -11 -10 -10 -10 ------------ Run | Jun Mat Min Exi Used RIF Installer . | . . . . Robots Hacked . | . . . . Non-combat . | . . . . Combat . | . . . . Robot Hacks Applied . | . . . . Relay Couplers Released . | . . . . Fabnet Peak Effective % . | . . . . Robots Rewired . | . . . . Allies Hacked . | . . . . Hacks Repelled . | . . . . Allies | -11 -10 -10 -10 -------- Run | Jun Mat Min Exi Total Allies 1 | . . 1 . Largest Group 1 | . . 1 . Highest-Rated Group 31 | . . 31 . Highest-Rated Ally 31 | . . 31 . Total Orders . | . . . . Ally Attacks . | . . . . Total Damage . | . . . . Kills . | . . . . Allies Corrupted . | . . . . Allies Melted . | . . . . Intel | -11 -10 -10 -10 ------- Run | Jun Mat Min Exi Robot Analysis Total 1 | . 1 . . Derelict Logs Recovered 1 | . . 1 . Drone Launches . | . . . . Drone Recoveries . | . . . . Exploration | -11 -10 -10 -10 ------------- Run | Jun Mat Min Exi Turns Passed 9156 | 6133 1750 1090 183 Spaces Moved 3208 | 1192 1175 710 131 Core 16 | 16 . . . Treads . | . . . . Legs 3192 | 1176 1175 710 131 Wheels . | . . . . Hover . | . . . . Flight . | . . . . Fastest Speed 50 | 50 120 120 120 Average Speed 119 | 119 120 120 120 Slowest Speed 120 | 120 120 120 120 Overloaded Moves . | . . . . Propulsion Burnouts . | . . . . Robots Hopped . | . . . . Cave-ins Triggered . | . . . . Exploration Rate (%) 85 | 108 96 94 43 Regions Visited 3 Branch Regions 2 Pre-discovered Areas . | . . . . Known Exits Taken 1 | . 1 . . Unknown Exits Taken 2 | 1 . 1 . Scrap Searched 1 | . . 1 . Spaces Dug 2 | . . 2 . Terrain Destroyed 6 | . . 6 . Melee . | . . . . Projectile 6 | . . 6 . AOE . | . . . . Terrain Rammed . | . . . . Walls Destroyed . | . . . . Machines Disabled . | . . . . Actions | -11 -10 -10 -10 --------- Run | Jun Mat Min Exi Total 8225 | 5898 1365 820 142 Wait 4772 | 4696 62 14 . Move 3206 | 1191 1174 710 131 Hop . | . . . . Pick Up 5 | . 3 2 . Fast Attach 15 | 6 7 1 1 Attach 1 | . . 1 . Detach . | . . . . Swap 6 | 1 2 3 . Drop 13 | 1 9 2 1 Fire 169 | 3 87 70 9 Melee . | . . . . Ram . | . . . . Kick . | . . . . Crush . | . . . . Escape Stasis . | . . . . Rewire . | . . . . Trap . | . . . . Miscellaneous 38 | . 21 17 . Route ------- -11/Junkyard -10/Materials (discovered 5 exits: *Mat x3 / *Min x2) -10/Mines (discovered 2 exits: *Mat / [*Exi]) -10/Exiles (discovered 1 exit: [*Min]) History --------- Turn | Location | Event 2 | -11/Junkyard | Met Revision 17 10 | -11/Junkyard | Upgraded with Propulsion slot (x1) 10 | -11/Junkyard | Upgraded with Utility slot (x1) 10 | -11/Junkyard | Upgraded with Weapon slot (x1) 66 | -11/Junkyard | Discovered new exit (range 8) 6134 | -11/Junkyard | Entered Materials 6135 | -10/Materials | Build established: Mutant 6331 | -10/Materials | Met 8R-AWN 6359 | -10/Materials | Discovered new exit (range 8) 6535 | -10/Materials | Discovered new exit (range 12) 6739 | -10/Materials | Discovered new exit (range 16) 6996 | -10/Materials | Discovered new exit (range 16) 7074 | -10/Materials | Discovered new exit (range 16) 7325 | -10/Materials | Identified exit to Materials 7325 | -10/Materials | Identified exit to Mines 7348 | -10/Materials | Reached level 2 7475 | -10/Materials | Build established: Infiltrator-Mutant 7592 | -10/Materials | Repaired Ion Engine 7884 | -10/Materials | Entered Mines 7886 | -10/Mines | Reached level 3 7886 | -10/Mines | Followed 8R-AWN into the Mines 7886 | -10/Mines | Upgraded with Utility slot (x1) 7887 | -10/Mines | Received a Mining Laser from a helpful Derelict 7956 | -10/Mines | Found a damaged Exp. Sensor Array with a note attached 7959 | -10/Mines | Found Prototype Device 8157 | -10/Mines | Learned Materials terminal intel 8255 | -10/Mines | Identified Exp. Sensor Array 8481 | -10/Mines | Assembled infested the area 8486 | -10/Mines | Assisted by a Guerilla fighting off Assembled 8600 | -10/Mines | Destroyed 9 combat bots 8624 | -10/Mines | Found a hidden stash of uninstalled traps 8733 | -10/Mines | Discovered new exit (range 5) 8791 | -10/Mines | Discovered exit to Materials (range 5) 8974 | -10/Mines | Entered Exiles 9000 | -10/Exiles | Discovered new exit (range 16) 9032 | -10/Exiles | Welcomed by 8R-AWN 9052 | -10/Exiles | Met EX-HEX 9117 | -10/Exiles | Met EX-DEC 9133 | -10/Exiles | Attacked by the Exiles 9141 | -10/Exiles | Core integrity fell below 50% 9153 | -10/Exiles | Core integrity fell below 20% 9157 | -10/Exiles | Destroyed by as-23431 with Assembled Blade Last Messages --------------- 09133_ EXILES: Hostile robot within lab perimeter. Defensive protocols time, folks! 09134_ Machine disabled. 09134_ Destroyed EX Chip 2. 09135_ EX-DEC: "Let's see what this bad boy can do..." 09135_ EX-DEC deploys DAS Turret. 09136_ Ion Engine destroyed. 09136_ Critical hit (Blast). 09144_ Structural Scanner destroyed. 09144_ Critical hit (Blast). 09147_ Machine disabled. 09148_ EX-BIN: "I just want to science!" 09152_ Aluminum Leg blasted off. When the line of fire is red, you are attempting to shoot through an object at another target, which incurs significant penalties. 09154_ DAS Turret misfires. [Achievement: First Step to Greatness] Important note for Steam players: Cogmind player global achievement rates displayed by Steam are all significantly underreported, in some cases by a huge margin, due to how they are calculated by Valve. Map ----- +----------------------------------------------------+ | ?????????????????????????????????????????????????? | | ?????????????????????????????????????????????????? | | ?????????????????????????????????????????????????? | | ?????????????????????????????????????????????????? | | ?????????????????????????????????????????????????? | | ?????????????????????????????????????????????????? | | ?????????????????????????????????????????????????? | | ?????????????????????????????????????????????????? | | ?????????????????????????????????????????????????? | | ?????????????????????????????????????????????????? | | ?????????????????????????????????????????????????? | | ???????????????????????????####### ??????????????? | | ???????????????????????????#####X# ??????????????? | | ??????????????????????????? ??????????? | | ?????????????????????????? "" ??????? | | ????????????????????????? " " ???? | | ????????????????????????? ???? | | ????????????????????????? ???? | | ????????????????????????? ???? | | ????????????????????????# ????? | | ????????????????????????##" ????? | | ???????????????????????###""" ????? | | ???????????????????????###" ??????? | | ??????????????????????###""% ""#?????? | | ??????????????????????###"" % """##?????? | | ??????????????????????##"@a% z """###?????? | | ??????????????????????##"%a ""######### | | ??????????????????????##" a a ########## | | ??????????????????????##""a ## ### | | ??????????????????????##"" t "" | | ??????????????????????###"" a | | ??????????????????????###""" a | | ???????????????????????### | | ???????????????????????###" " | | ????????????????????????##""" ""## | | ????????????????????????##"" ""#### | | ????????????????????????##" """"##### | | ????????????????????????##""" ? """##### | | ????????????????????????### ""#####! | | ????????????????????????###"" """######" | | ?????????????????????????###""" ####?##" | | ?????????????????????????####"""" ####??##!! | | ??????????????????????????##### ###???#### | | ????????????????????????????####### ###????#### | | ??????????????????????????????###### ###???????? | | ?????????????????????????????????### ##????????? | | ??????????????????????????????????## ##????????? | | ?????????????????????????????????????????????????? | | ?????????????????????????????????????????????????? | | ?????????????????????????????????????????????????? | +----------------------------------------------------+ Best States ------------- Heat Dissipation 51 Energy Generation 15 Energy Capacity 300 Matter Stores 350 Matter Capacity 350 Sight Range 17 Robot Scan Range 24 Terrain Scan Density 110 ECM Strength 1 Evasion (%) 55 Item Schematics ----------------- None Robot Schematics ------------------ None Fabricated ------------ Nothing Alien Tech Used ----------------- None Achievements -------------- First Step to Greatness Hunted I Survived The Infestation Risk Taker Challenges ------------ None RPGLIKE | -11 -10 -10 -10 --------- Run | Jun Mat Min Exi Levels Raised 2 | . 1 1 . XP Earned 7475 | 3100 2575 1600 200 XP Spent 5925 | 3000 1425 1500 . Upgrades 27 | 19 4 4 . Propulsion Slot 1 | 1 . . . Utility Slot 2 | 1 . 1 . Weapon Slot 1 | 1 . . . Core Integrity 8 | 8 . . . Heat Dissipation 2 | 2 . . . Energy Generation 1 | . . 1 . Energy Storage 1 | . . 1 . Matter Storage 1 | . . 1 . Mass Support 1 | 1 . . . Inventory Capacity 1 | . 1 . . Sight Range 1 | 1 . . . Sensor Range 2 | 1 1 . . Terrain Scan Density 1 | 1 . . . Ranged Accuracy 3 | 1 2 . . Melee Accuracy 1 | 1 . . . Protomatter Created 394 | . 231 163 . Integrity Restored 704 | . 388 316 . Core 638 | . 325 313 . Parts 66 | . 63 3 . Protomatter Decayed 362 | . 333 29 . Game ------ Seed TerrabombHeartRail Manual? 0 Play Time 01:17:51 Cumulative 4.1 hours Start 2023.12.25 @ 15:37:03 End 2023.12.25 @ 18:11:27 Sessions 1 Manual Loads 0 Difficulty Rogue Special Mode Winter2019/RPGLIKE Game No. 2 Rogue 2 Adventurer 0 Explorer 0 Win Type - Total 0 Types 0/0/0/0/0/0/0/0/0 Lore% 2 Gallery% 3 Achievement% 5 Wizard Run 0 Options --------- ASCII 1 Keyboard 0 Movement Mouse Keybinds 0 Fullscreen 1 Font 36/TerminusFine Map View 76x50 Tactical HUD 1 Map Filters NONE Filters NONE Steam 1 RUN: d36e70c8-9f79-4f48-8dbd-4886d440e8fa